fUST/lending_fUST_20251012
["ID","MTS","AMOUNT","RATE_DAILY","PERIOD"]
[390977143,1760257231503,-165.069161,0.000244,7]
[390977144,1760257231527,-151.0,0.000244,7]
[390977145,1760257231549,-165.069161,0.000244,7]
[390977146,1760257231572,-879.262409,0.000244,7]
[390977147,1760257231598,-151.0,0.000244,7]
[390977148,1760257231622,-165.069161,0.000244,7]
[390977149,1760257231646,-151.0,0.000244,7]
[390977150,1760257231669,-151.0,0.000244,7]
[390977151,1760257231692,-151.0,0.000244,7]
[390977152,1760257231716,-151.0,0.000244,7]
[390977153,1760257231741,-196.172456,0.000244,7]
[390977154,1760257231764,-151.0,0.000244,7]
[390977155,1760257231787,-306.753128,0.000244,7]
[390977156,1760257231809,-196.172456,0.000244,7]
[390977157,1760257231832,-151.0,0.000244,7]
[390977158,1760257231856,-306.753128,0.000244,7]
[390977159,1760257231878,-196.172456,0.000244,7]
[390977160,1760257231901,-151.0,0.000244,7]
[390977161,1760257231923,-151.0,0.000244,7]
[390977162,1760257231946,-306.753128,0.000244,7]
[390977163,1760257231968,-196.172456,0.000244,7]
[390977164,1760257231989,-151.0,0.000244,7]
[390977165,1760257232012,-306.753128,0.000244,7]
[390977166,1760257232034,-151.0,0.000244,7]
[390977167,1760257232056,-151.0,0.000244,7]
[390977168,1760257232088,-169.443564,0.000244,7]
[390977169,1760257232111,-169.443564,0.000244,7]
[390977170,1760257232134,-169.443564,0.000244,7]
[390977171,1760257232156,-169.443564,0.000244,7]
[390977172,1760257232178,-151.0,0.000244,7]
[390977173,1760257232201,-151.0,0.000244,7]
[390977174,1760257232223,-151.0,0.000244,7]
[390977175,1760257232245,-151.0,0.000244,7]
[390977176,1760257232268,-151.0,0.000244,7]
[390977177,1760257232290,-151.0,0.000244,7]
[390977178,1760257232311,-151.0,0.000244,7]
[390977179,1760257232333,-478.610353,0.000244,7]
[390977180,1760257232355,-151.0,0.000244,7]
[390977181,1760257232376,-151.0,0.000244,7]
[390977182,1760257232397,-478.610353,0.000244,7]
[390977183,1760257232419,-151.0,0.000244,7]
[390977184,1760257232440,-478.610353,0.000244,7]
[390977185,1760257232462,-478.610353,0.000244,7]
[390977186,1760257232484,-151.0,0.000244,7]
[390977187,1760257232507,-151.0,0.000244,7]
[390977188,1760257232528,-151.0,0.000244,7]
[390977189,1760257232550,-151.0,0.000244,7]
[390977190,1760257232572,-527.900034,0.000244,7]
[390977191,1760257232595,-527.900034,0.000244,7]
[390977192,1760257232618,-151.0,0.000244,7]
[390977193,1760257232640,-527.900034,0.000244,7]
[390977194,1760257232663,-151.0,0.000244,7]
[390977195,1760257232686,-527.900034,0.000244,7]
[390977196,1760257232708,-151.0,0.000244,7]
[390977197,1760257232730,-159.798529,0.000244,7]
[390977198,1760257232754,-151.0,0.000244,7]
[390977199,1760257232776,-151.0,0.000244,7]
[390977200,1760257232798,-151.0,0.000244,7]
[390977201,1760257232819,-275.440586,0.000244,7]
[390977202,1760257232842,-275.440586,0.000244,7]
[390977203,1760257232864,-275.440586,0.000244,7]
[390977204,1760257232885,-275.440586,0.000244,7]
[390977205,1760257232908,-705.142839,0.000244,7]
[390977206,1760257232932,-705.142839,0.000244,7]
[390977207,1760257232956,-705.142839,0.000244,7]
[390977208,1760257233110,-705.142839,0.000244,7]
[390977209,1760257233133,-158.926823,0.00024425,3]
[390977210,1760257233161,-151.0,0.0002445,7]
[390977211,1760257233183,-183.549242,0.0002445,7]
[390977212,1760257233207,-207.473384,0.0002445,7]
[390977213,1760257233230,-207.473384,0.0002445,7]
[390977214,1760257233252,-207.473384,0.0002445,7]
[390977215,1760257233275,-215.558205,0.0002445,7]
[390977216,1760257233298,-207.473384,0.0002445,7]
[390977217,1760257233321,-151.0,0.0002445,7]
[390977218,1760257233344,-151.0,0.0002445,7]
[390977219,1760257233366,-151.0,0.0002445,7]
[390977220,1760257233389,-151.0,0.0002445,7]
[390977221,1760257233412,-151.0,0.0002445,7]
[390977222,1760257233435,-151.0,0.0002445,7]
[390977223,1760257233458,-793.853641,0.0002445,7]
[390977224,1760257233480,-151.0,0.0002445,7]
[390977225,1760257233503,-793.853641,0.0002445,7]
[390977226,1760257233527,-793.853641,0.0002445,7]
[390977227,1760257233549,-793.853641,0.0002445,7]
[390977228,1760257233571,-190.91153,0.0002445,7]
[390977229,1760257233594,-190.91153,0.0002445,7]
[390977230,1760257233616,-190.91153,0.0002445,7]
[390977231,1760257233638,-190.91153,0.0002445,7]
[390977232,1760257233661,-151.0,0.0002445,7]
[390977233,1760257233684,-151.0,0.0002445,7]
[390977234,1760257233706,-263.415969,0.0002445,7]
[390977235,1760257233732,-263.415969,0.0002445,7]
[390977236,1760257233755,-263.415969,0.0002445,7]
[390977237,1760257233779,-151.0,0.0002445,7]
[390977238,1760257233804,-263.415969,0.0002445,7]
[390977239,1760257233828,-151.0,0.0002445,7]
[390977240,1760257233852,-168.042562,0.0002445,7]
[390977241,1760257233876,-168.042562,0.0002445,7]
[390977242,1760257233898,-151.0,0.0002445,7]
[390977243,1760257233920,-168.042562,0.0002445,7]
[390977244,1760257233945,-168.042562,0.0002445,7]
[390977245,1760257233967,-151.0,0.0002445,7]
[390977246,1760257233989,-151.0,0.0002445,7]
[390977247,1760257234011,-151.0,0.0002445,7]
[390977248,1760257234033,-151.0,0.0002445,7]
[390977249,1760257234055,-202.6244,0.0002445,7]
[390977250,1760257234081,-202.6244,0.0002445,7]
[390977251,1760257234105,-202.6244,0.0002445,7]
[390977252,1760257234127,-202.6244,0.0002445,7]
[390977253,1760257234152,-151.0,0.0002445,7]
[390977254,1760257234175,-151.0,0.0002445,7]
[390977255,1760257234197,-151.0,0.0002445,7]
[390977256,1760257234222,-296.497158,0.0002445,7]
[390977257,1760257234246,-151.0,0.0002445,7]
[390977258,1760257234269,-296.497158,0.0002445,7]
[390977259,1760257234299,-296.497158,0.0002445,7]
[390977260,1760257234322,-151.0,0.0002445,7]
[390977261,1760257234344,-151.0,0.0002445,7]
[390977262,1760257234365,-152.432686,0.0002445,7]
[390977263,1760257234388,-296.497158,0.0002445,7]
[390977264,1760257234409,-151.0,0.0002445,7]
[390977265,1760257234433,-151.0,0.0002445,7]
[390977266,1760257234456,-251.617198,0.0002445,7]
[390977267,1760257234478,-151.0,0.0002445,7]
[390977268,1760257234499,-151.0,0.0002445,7]
[390977269,1760257234520,-151.0,0.0002445,7]
[390977270,1760257234540,-151.0,0.0002445,7]
[390977271,1760257234562,-499.498643,0.00024464,7]
[390977272,1760257234586,-499.498643,0.00024464,7]
[390977273,1760257234609,-499.498643,0.00024464,7]
[390977274,1760257234631,-499.498643,0.00024464,7]
[390977275,1760257234653,-151.0,0.00024464,7]
[390977276,1760257234673,-200.0,0.00024464,3]
[390977277,1760257234694,-151.0,0.00024464,7]
[390977278,1760257234715,-151.0,0.00024464,7]
[390977279,1760257234737,-457.793438,0.00024464,7]
[390977280,1760257234759,-457.793438,0.00024464,7]
[390977281,1760257234781,-457.793438,0.00024464,7]
[390977282,1760257234802,-457.793438,0.00024464,7]
[390977283,1760257234824,-166.0,0.00024464,3]
[390977284,1760257234848,-158.926823,0.00024487,3]
[390977285,1760257234871,-160.166806,0.00024487,3]
[390977286,1760257234893,-151.0,0.00024493,7]
[390977287,1760257234917,-879.262409,0.00024493,7]
[390977288,1760257234940,-879.262409,0.00024493,7]
[390977289,1760257234963,-179.453686,0.00024493,7]
[390977290,1760257234986,-879.262409,0.00024493,7]
[390977291,1760257235009,-165.069161,0.00024493,7]
[390977292,1760257235031,-165.069161,0.00024493,7]
[390977293,1760257235054,-151.0,0.00024493,7]
[390977294,1760257235080,-165.069161,0.00024493,7]
[390977295,1760257235103,-879.262409,0.00024493,7]
[390977296,1760257235127,-151.0,0.00024493,7]
[390977297,1760257235151,-165.069161,0.00024493,7]
[390977298,1760257235173,-151.0,0.00024493,7]
[390977299,1760257235195,-262.646847,0.00024493,7]
[390977300,1760257235217,-151.0,0.00024493,7]
[390977301,1760257235238,-151.0,0.00024493,7]
[390977302,1760257235262,-196.172456,0.00024493,7]
[390977303,1760257235284,-151.0,0.00024493,7]
[390977304,1760257235307,-306.753128,0.00024493,7]
[390977305,1760257235331,-196.172456,0.00024493,7]
[390977306,1760257235352,-151.0,0.00024493,7]
[390977307,1760257235376,-306.753128,0.00024493,7]
[390977308,1760257235401,-196.172456,0.00024493,7]
[390977309,1760257235424,-151.0,0.00024493,7]
[390977310,1760257235446,-151.0,0.00024493,7]
[390977311,1760257235467,-306.753128,0.00024493,7]
[390977312,1760257235492,-196.172456,0.00024493,7]
[390977313,1760257235524,-193.327152,0.00024493,7]
[390977314,1760257235547,-306.753128,0.00024493,7]
[390977315,1760257235569,-151.0,0.00024493,7]
[390977316,1760257235592,-151.0,0.00024493,7]
[390977317,1760257235614,-169.443564,0.00024493,7]
[390977318,1760257235637,-169.443564,0.00024493,7]
[390977319,1760257235660,-169.443564,0.00024493,7]
[390977320,1760257235682,-169.443564,0.00024493,7]
[390977321,1760257235714,-151.0,0.00024493,7]
[390977322,1760257235740,-151.0,0.00024493,7]
[390977323,1760257235767,-151.0,0.00024493,7]
[390977324,1760257235799,-151.0,0.00024493,7]
[390977325,1760257235827,-151.0,0.00024493,7]
[390977326,1760257235859,-151.0,0.00024493,7]
[390977327,1760257235888,-151.0,0.00024493,7]
[390977328,1760257235914,-478.610353,0.00024493,7]
[390977329,1760257235938,-151.0,0.00024493,7]
[390977330,1760257235963,-151.0,0.00024493,7]
[390977331,1760257235987,-478.610353,0.00024493,7]
[390977332,1760257236011,-271.145248,0.00024493,7]
[390977333,1760257236034,-478.610353,0.00024493,7]
[390977334,1760257236056,-478.610353,0.00024493,7]
[390977335,1760257236087,-151.0,0.00024493,7]
[390977336,1760257236112,-151.0,0.00024493,7]
[390977337,1760257236136,-151.0,0.00024493,7]
[390977338,1760257236160,-155.730101,0.00024493,7]
[390977339,1760257236183,-527.900034,0.00024493,7]
[390977340,1760257236332,-527.900034,0.00024493,7]
[390977341,1760257236365,-151.0,0.00024493,7]
[390977342,1760257236388,-527.900034,0.00024493,7]
[390977343,1760257236410,-151.0,0.00024493,7]
[390977344,1760257236433,-527.900034,0.00024493,7]
[390977345,1760257236454,-151.0,0.00024493,7]
[390977346,1760257236476,-151.0,0.00024493,7]
[390977347,1760257236501,-151.0,0.00024493,7]
[390977348,1760257236524,-151.0,0.00024493,7]
[390977349,1760257236547,-275.440586,0.00024493,7]
[390977350,1760257236569,-275.440586,0.00024493,7]
[390977351,1760257236592,-275.440586,0.00024493,7]
[390977352,1760257236615,-275.440586,0.00024493,7]
[390977353,1760257236637,-705.142839,0.00024493,7]
[390977354,1760257236659,-705.142839,0.00024493,7]
[390977355,1760257236681,-705.142839,0.00024493,7]
[390977356,1760257236703,-705.142839,0.00024493,7]
[390977357,1760257236725,-165.0,0.000245,3]
[390977358,1760257236747,-166.0,0.000245,3]
[390977359,1760257236769,-157.0,0.000245,3]
[390977360,1760257236791,-155.38110599,0.000245,3]
[390977361,1760257236813,-330.0,0.000245,3]
[390977362,1760257236837,-330.0,0.000245,3]
[390977363,1760257236858,-330.0,0.000245,3]
[390977364,1760257236880,-330.0,0.000245,3]
[390977365,1760257236901,-178.10549809,0.000245,3]
[390977366,1760257236922,-151.0,0.00024519,7]
[390977367,1760257236944,-151.0,0.00024519,7]
[390977368,1760257236965,-151.0,0.00024519,7]
[390977369,1760257236987,-151.0,0.00024519,7]
[390977370,1760257237010,-151.0,0.00024519,7]
[390977371,1760257237031,-151.0,0.00024519,7]
[390977372,1760257237052,-151.0,0.00024519,7]
[390977373,1760257237078,-151.0,0.00024519,7]
[390977374,1760257237100,-151.0,0.00024519,7]
[390977375,1760257237123,-151.0,0.00024519,7]
[390977376,1760257237145,-151.0,0.00024519,7]
[390977377,1760257237166,-151.0,0.00024519,7]
[390977378,1760257237189,-156.633611,0.00024519,7]
[390977379,1760257237211,-158.926823,0.0002455,3]
[390977380,1760257237233,-160.166806,0.0002455,3]
[390977381,1760257237255,-500.0,0.00024574,5]
[390977382,1760257237276,-151.0,0.00024574,7]
[390977383,1760257237298,-151.424949,0.00024574,7]
[390977384,1760257237319,-176.400939,0.00024574,7]
[390977385,1760257237341,-151.0,0.00024628,7]
[390977386,1760257237362,-151.0,0.00024628,7]
[390977387,1760257237384,-151.0,0.00024628,7]
[390977388,1760257237408,-253.064066,0.00024628,7]
[390977389,1760257237433,-151.0,0.00024628,7]
[390977390,1760257237457,-793.853641,0.00024628,7]
[390977391,1760257237479,-151.0,0.00024628,7]
[390977392,1760257237505,-793.853641,0.00024628,7]
[390977393,1760257237528,-793.853641,0.00024628,7]
[390977394,1760257237552,-793.853641,0.00024628,7]
[390977395,1760257237574,-190.91153,0.00024628,7]
[390977396,1760257237597,-190.91153,0.00024628,7]
[390977397,1760257237619,-190.91153,0.00024628,7]
[390977398,1760257237642,-190.91153,0.00024628,7]
[390977399,1760257237664,-151.0,0.00024628,7]
[390977400,1760257237687,-151.0,0.00024628,7]
[390977401,1760257237711,-263.415969,0.00024628,7]
[390977402,1760257237734,-263.415969,0.00024628,7]
[390977403,1760257237756,-263.415969,0.00024628,7]
[390977404,1760257237779,-263.415969,0.00024628,7]
[390977405,1760257237801,-207.473384,0.0002464,7]
[390977406,1760257237824,-207.473384,0.0002464,7]
[390977407,1760257237849,-207.473384,0.0002464,7]
[390977408,1760257237872,-207.473384,0.0002464,7]
[390977409,1760257237896,-151.17011,0.0002464,7]
[390977410,1760257237920,-151.0,0.0002464,7]
[390977411,1760257237943,-151.0,0.0002464,7]
[390977412,1760257237967,-296.497158,0.0002464,7]
[390977413,1760257237990,-151.0,0.0002464,7]
[390977414,1760257238014,-296.497158,0.0002464,7]
[390977415,1760257238044,-296.497158,0.0002464,7]
[390977416,1760257238071,-151.0,0.0002464,7]
[390977417,1760257238096,-151.0,0.0002464,7]
[390977418,1760257238123,-296.497158,0.0002464,7]
[390977419,1760257238148,-151.0,0.0002464,7]
[390977420,1760257238173,-151.0,0.0002464,7]
[390977421,1760257238199,-154.975443,0.0002464,7]
[390977422,1760257238225,-151.0,0.0002464,7]
[390977423,1760257238250,-151.0,0.0002464,7]
[390977424,1760257238275,-155.800607,0.0002464,7]
[390977425,1760257238300,-151.0,0.00024657,7]
[390977426,1760257238325,-170.266076,0.00024657,7]
[390977427,1760257238349,-168.042562,0.00024657,7]
[390977428,1760257238372,-168.042562,0.00024657,7]
[390977429,1760257238395,-151.0,0.00024657,7]
[390977430,1760257238418,-168.042562,0.00024657,7]
[390977431,1760257238441,-168.042572,0.00024657,7]
[390977432,1760257238464,-151.0,0.00024657,7]
[390977433,1760257238487,-151.0,0.00024657,7]
[390977434,1760257238510,-151.0,0.00024657,7]
[390977435,1760257238535,-151.0,0.00024657,7]
[390977436,1760257238556,-202.6244,0.00024657,7]
[390977437,1760257238578,-202.6244,0.00024657,7]
[390977438,1760257238601,-202.6244,0.00024657,7]
[390977439,1760257238625,-202.6244,0.00024657,7]
[390977440,1760257238647,-1500.0,0.00024657,10]
[390977441,1760257238670,-151.940345,0.0002467,7]
[390977442,1760257238696,-151.0,0.0002467,7]
[390977443,1760257238722,-151.0,0.0002467,7]
[390977444,1760257238746,-151.0,0.0002467,7]
[390977445,1760257238770,-196.172456,0.00024672,7]
[390977446,1760257238795,-151.0,0.00024672,7]
[390977447,1760257238820,-306.753128,0.00024672,7]
[390977448,1760257238850,-196.172456,0.00024672,7]
[390977449,1760257238874,-151.0,0.00024672,7]
[390977450,1760257238902,-306.753128,0.00024672,7]
[390977451,1760257238925,-196.172456,0.00024672,7]
[390977452,1760257238948,-151.0,0.00024672,7]
[390977453,1760257238972,-152.940804,0.00024672,7]
[390977454,1760257238996,-306.753128,0.00024672,7]
[390977455,1760257239020,-196.172457,0.00024672,7]
[390977456,1760257239042,-306.75312,0.00024672,7]
[390977457,1760257239066,-151.0,0.00024672,7]
[390977458,1760257239092,-169.443564,0.00024672,7]
[390977459,1760257239116,-169.443564,0.00024672,7]
[390977460,1760257239139,-169.443564,0.00024672,7]
[390977461,1760257239165,-169.443568,0.00024672,7]
[390977462,1760257239188,-151.0,0.00024672,7]
[390977463,1760257239211,-151.0,0.00024672,7]
[390977464,1760257239233,-160.124661,0.00024672,7]
[390977465,1760257239255,-151.0,0.00024672,7]
[390977466,1760257239277,-173.392585,0.00024672,7]
[390977467,1760257239430,-151.0,0.00024672,7]
[390977468,1760257239453,-151.0,0.00024672,7]
[390977469,1760257239478,-478.610353,0.00024672,7]
[390977470,1760257239503,-151.0,0.00024672,7]
[390977471,1760257239525,-151.0,0.00024672,7]
[390977472,1760257239548,-478.610353,0.00024672,7]
[390977473,1760257239571,-478.610353,0.00024672,7]
[390977474,1760257239596,-478.610352,0.00024672,7]
[390977475,1760257239620,-151.0,0.00024672,7]
[390977476,1760257239644,-151.0,0.00024672,7]
[390977477,1760257239668,-199.564049,0.00024672,7]
[390977478,1760257239691,-527.900034,0.00024672,7]
[390977479,1760257239714,-527.900034,0.00024672,7]
[390977480,1760257239737,-151.0,0.00024672,7]
[390977481,1760257239760,-527.900034,0.00024672,7]
[390977482,1760257239784,-151.0,0.00024672,7]
[390977483,1760257239808,-527.900043,0.00024672,7]
[390977484,1760257239832,-151.0,0.00024672,7]
[390977485,1760257239865,-151.0,0.00024672,7]
[390977486,1760257239887,-151.0,0.00024672,7]
[390977487,1760257239908,-189.90451,0.00024672,7]
[390977488,1760257239931,-275.440586,0.00024672,7]
[390977489,1760257239954,-275.440586,0.00024672,7]
[390977490,1760257239976,-275.440586,0.00024672,7]
[390977491,1760257240000,-275.440595,0.00024672,7]
[390977492,1760257240024,-705.142839,0.00024672,7]
[390977493,1760257240047,-705.142839,0.00024672,7]
[390977494,1760257240076,-705.142839,0.00024672,7]
[390977495,1760257240101,-705.142833,0.00024672,7]
[390977496,1760257240126,-151.0,0.0002468,7]
[390977497,1760257240149,-879.262409,0.0002468,7]
[390977498,1760257240172,-879.262409,0.0002468,7]
[390977499,1760257240196,-879.262409,0.0002468,7]
[390977500,1760257240218,-165.069161,0.0002468,7]
[390977501,1760257240242,-165.069161,0.0002468,7]
[390977502,1760257240267,-151.0,0.0002468,7]
[390977503,1760257240289,-165.069161,0.0002468,7]
[390977504,1760257240313,-879.262405,0.0002468,7]
[390977505,1760257240338,-151.0,0.0002468,7]
[390977506,1760257240360,-165.069168,0.0002468,7]
[390977507,1760257240383,-168.740516,0.0002468,7]
[390977508,1760257240404,-151.0,0.0002468,7]
[390977509,1760257240425,-151.0,0.0002468,7]
[390977510,1760257240447,-499.498643,0.0002469,7]
[390977511,1760257240468,-499.498643,0.0002469,7]
[390977512,1760257240490,-499.498643,0.0002469,7]
[390977513,1760257240512,-499.498643,0.0002469,7]
[390977514,1760257240533,-151.0,0.0002469,7]
[390977515,1760257240555,-151.0,0.0002469,7]
[390977516,1760257240577,-201.0,0.0002469,7]
[390977517,1760257240601,-457.793438,0.0002469,7]
[390977518,1760257240623,-457.793438,0.0002469,7]
[390977519,1760257240646,-457.793438,0.0002469,7]
[390977520,1760257240668,-457.793438,0.0002469,7]
[390977521,1760257240690,-416.594,0.00024692,7]
[390977522,1760257240712,-1567.9519887,0.000247,7]
[390977523,1760257240734,-151.0,0.0002471,7]
[390977524,1760257240755,-152.357707,0.0002471,7]
[390977525,1760257240778,-153.719623,0.0002471,7]
[390977526,1760257240800,-276.673246,0.0002471,7]
[390977527,1760257240822,-151.0,0.0002471,7]
[390977528,1760257240844,-152.841391,0.0002471,7]
[390977529,1760257240866,-151.0,0.0002471,7]
[390977530,1760257240888,-151.0,0.0002471,7]
[390977531,1760257240909,-151.0,0.0002471,7]
[390977532,1760257240931,-151.0,0.0002471,7]
[390977533,1760257240951,-151.0,0.0002471,7]
[390977534,1760257240973,-151.987195,0.0002471,7]
[390977535,1760257240995,-151.0,0.0002472,7]
[390977536,1760257241016,-151.0,0.0002475,7]
[390977537,1760257241041,-793.853641,0.0002475,7]
[390977538,1760257241066,-154.580837,0.0002475,7]
[390977539,1760257241091,-793.853641,0.0002475,7]
[390977540,1760257241114,-793.853641,0.0002475,7]
[390977541,1760257241136,-793.853645,0.0002475,7]
[390977542,1760257241159,-190.91153,0.0002475,7]
[390977543,1760257241180,-190.91153,0.0002475,7]
[390977544,1760257241202,-190.91153,0.0002475,7]
[390977545,1760257241223,-190.911521,0.0002475,7]
[390977546,1760257241246,-151.0,0.0002475,7]
[390977547,1760257241268,-151.0,0.0002475,7]
[390977548,1760257241289,-263.415969,0.0002475,7]
[390977549,1760257241312,-263.415969,0.0002475,7]
[390977550,1760257241334,-263.415969,0.0002475,7]
[390977551,1760257241356,-263.415966,0.0002475,7]
[390977552,1760257241379,-151.0,0.0002475,7]
[390977553,1760257241402,-151.0,0.0002475,7]
[390977554,1760257241424,-296.497158,0.0002475,7]
[390977555,1760257241447,-151.0,0.0002475,7]
[390977556,1760257241470,-296.497158,0.0002475,7]
[390977557,1760257241494,-296.497158,0.0002475,7]
[390977558,1760257241521,-151.0,0.0002475,7]
[390977559,1760257241544,-151.0,0.0002475,7]
[390977560,1760257241566,-296.497155,0.0002475,7]
[390977561,1760257241589,-151.0,0.0002475,7]
[390977562,1760257241613,-152.238336,0.0002475,7]
[390977563,1760257241636,-151.0,0.0002475,7]
[390977564,1760257241659,-188.712594,0.0002475,7]
[390977565,1760257241685,-207.473384,0.0002477,7]
[390977566,1760257241709,-207.473384,0.0002477,7]
[390977567,1760257241732,-207.473384,0.0002477,7]
[390977568,1760257241755,-207.473381,0.0002477,7]
[390977569,1760257241778,-151.0,0.0002478,7]
[390977570,1760257241801,-151.0,0.0002478,7]
[390977571,1760257241825,-225.769247,0.0002478,7]
[390977572,1760257241847,-240.343038,0.0002478,7]
[390977573,1760257241869,-151.0,0.0002478,7]
[390977574,1760257241891,-151.0,0.0002478,7]
[390977575,1760257241912,-1741.36134469,0.000248,4]
[390977576,1760257241934,-151.0,0.000248,7]
[390977577,1760257241956,-151.0,0.000248,7]
[390977578,1760257241978,-151.0,0.000248,7]
[390977579,1760257242000,-151.0,0.000248,7]
[390977580,1760257242022,-151.0,0.000248,7]
[390977581,1760257242044,-151.0,0.000248,7]
[390977582,1760257242071,-152.843868,0.000248,7]
[390977583,1760257242095,-499.498643,0.000248,7]
[390977584,1760257242118,-499.498643,0.000248,7]
[390977585,1760257242141,-499.498643,0.000248,7]
[390977586,1760257242166,-499.49864757,0.000248,7]
[390977587,1760257242186,-151.0,0.000248,7]
[390977588,1760257242208,-151.0,0.000248,7]
[390977589,1760257242335,-457.793438,0.000248,7]
[390977590,1760257242364,-457.793438,0.000248,7]
[390977591,1760257242388,-457.793438,0.000248,7]
[390977592,1760257242410,-457.793439,0.000248,7]
[390977593,1760257242431,-165.0,0.00024833,3]
[390977594,1760257242453,-166.0,0.00024833,3]
[390977595,1760257242475,-166.0,0.00024833,3]
[390977596,1760257242496,-166.0,0.00024833,3]
[390977597,1760257242519,-166.0,0.00024833,3]
[390977598,1760257242541,-500.0,0.00024848,5]
[390977599,1760257242564,-298.14195131,0.000249,7]
[390977600,1760257242585,-250.0,0.000249,10]
[390977601,1760257242608,-1500.0,0.00024931,10]
[390977602,1760257242630,-500.0,0.0002499,9]
[390977603,1760257242650,-500.0,0.0002499,9]
[390977604,1760257242672,-1567.9519887,0.00025,3]
[390977605,1760257242693,-250.0,0.00025,10]
[390977606,1760257242908,2000.0,0.00024384,30]
[390977607,1760257242935,2000.0,0.00024384,30]
[390977608,1760257242970,2000.0,0.00024384,30]
[390977609,1760257242998,2000.0,0.00024384,30]
[390977610,1760257243025,2000.0,0.00024384,30]
[390977611,1760257243051,2000.0,0.00024384,30]
[390977612,1760257243084,2000.0,0.00024384,30]
[390977613,1760257243116,2000.0,0.00024384,30]
[390977614,1760257243145,2000.0,0.00024384,30]
[390977615,1760257243178,290.264,0.00024384,30]
[390977616,1760257243245,151.0,0.00024173,7]
[390977617,1760257243272,151.0,0.000243,7]
[390977618,1760257243303,151.0,0.000244,7]
[390977619,1760257245590,1567.9519887,0.00024384,30]
[390977630,1760257531083,-500.0,0.0002271,2]
[390977631,1760257531106,-159.32794365,0.0002271,2]
[390977632,1760257531128,-183.2271352,0.0002331,2]
[390977633,1760257531150,-200.0,0.0002351,7]
[390977634,1760257531172,-173.79828642,0.00023595,2]
[390977637,1760257648071,-500.0,0.0002271,2]
[390977638,1760257648093,-159.590633,0.00022981,2]
[390977639,1760257648115,-500.0,0.000236,3]
[390977640,1760257648136,-330.20325083,0.00023765,2]
[390977641,1760257648156,-207.12632675,0.0002391,2]
[390977642,1760257648179,-200.0,0.0002391,7]
[390977643,1760257648202,-300.0,0.00023997,2]
[390977644,1760257648222,-500.0,0.00023998,2]
[390977645,1760257648243,-222.8,0.00023998,2]
[390977646,1760257648266,-500.0,0.00023998,2]
[390977647,1760257648285,-500.0,0.00023998,2]
[390977648,1760257648305,-500.0,0.00023998,2]
[390977649,1760257648324,-500.0,0.00023998,2]
[390977650,1760257648346,-509.17063531,0.00023999,2]
[390977651,1760257648366,-500.0,0.00023999,2]
[390977652,1760257648387,-500.0,0.00023999,2]
[390977653,1760257648408,-504.73297994,0.00023999,2]
[390977654,1760257648427,-239.51991381,0.00023999,2]